Cogmind - Beta 17.1 --- EXPLORER MODE // 2026.09.20 @ 00:10:12 Player: Wolfechu Result: Core melted Performance ------------- Evolutions (6) 3000 Regions Visited (15) 3000 Robots Destroyed (210) 1050 Value Destroyed (7761) 7761 Prototype IDs (8) 160 Alien Tech Used (0) 0 Bonus (2211) 2211 TOTAL SCORE: 17182 Bonus ------- High Alert Combat Kills 29 Follower Combat Kills 2901 Built Enhanced Grunts 300 A7 Reached Mainframe 300 Friendly Fire -1319 Cogmind --------- Core Integrity 0/1150 Matter 86/350 Energy 635/635 System Corruption 4% Temperature Critical (1081) Movement Walking (264) Ox2 Location -4/Factory Parts ------- > --- POWER (3) -------- Neutrino Core Light Neutrino Core Quantum Reactor > --- PROPULSION (5) --- VSS Leg Improved Titanium Leg Advanced VSS Leg > --- UTILITY (9) ------ High-capacity Storage Unit Small Matter Pod Improved Signal Interpreter Advanced Terrain Scan Processor Target Analyzer Core Analyzer Improved Medium Armor Plating > --- WEAPON (3) ------- Advanced Variable Charge Gun Disruptor Cannon Neutron Missile Launcher > --- INVENTORY (20) --- Light Nuclear Core Improved Deuterium Engine Reinforced Deuterium Engine Micro Fission Core Light Quantum Reactor Flexi-carbon Leg Enhanced Flexi-carbon Leg Myomer Leg Advanced Heat Sink Improved Coolant Injector Terrain Scan Processor Improved Target Analyzer EM Shield Plasma Rifle Heavy Flak Cannon Improved Datajack Peak State ------------ > --- POWER ------------ Neutrino Core Light Neutrino Core Quantum Reactor > --- PROPULSION ------- VSS Leg Improved Titanium Leg Myomer Leg Myomer Leg Advanced VSS Leg > --- UTILITY ---------- Improved Cryofiber Web Advanced Heat Sink High-capacity Storage Unit Small Matter Pod Advanced Weight Redist. System Improved Signal Interpreter Advanced Terrain Scan Processor Target Analyzer Core Analyzer > --- WEAPON ----------- Advanced Variable Charge Gun Mass Driver Neutron Missile Launcher > --- INVENTORY -------- Light Nuclear Core Improved Deuterium Engine Reinforced Deuterium Engine Micro Fission Core Light Quantum Reactor Flexi-carbon Leg Enhanced Flexi-carbon Leg Myomer Leg Advanced Heat Sink Improved Coolant Injector Terrain Scan Processor Improved Target Analyzer Improved Medium Armor Plating EM Shield Plasma Rifle Disruptor Cannon Heavy Flak Cannon Improved Datajack [Rating: 110] Favorites ----------- Power Light Nuclear Core Engine Light Deuterium Engine Power Core Light Nuclear Core Reactor Quantum Reactor Propulsion Carbon-fiber Leg Leg Carbon-fiber Leg Utility High-capacity Storage Unit Device Improved Cryofiber Web Storage High-capacity Storage Unit Processor Terrain Scan Processor Hackware Hacking Suite Protection Improved Medium Armor Plating Weapon Force Rifle Energy Gun Force Rifle Energy Cannon Phase Cannon Ballistic Gun Gauss Rifle Ballistic Cannon Mini Assault Cannon Launcher Heavy Rocket Launcher Special Melee Weapon Improved Datajack Build | -11 -10 -10 -9 -9 -8 -7 -6 -6 -6 -5 -5 -5 -5 -5 -4 ------- Run | Yrd Mat Min Mat Min Mat Fac Fac Was Fac Fac Ext Cet Arc Hub Fac Slots Evolved 13 | . 1 . 2 . 2 2 2 . . 2 . . . . 2 Power 2 | . . . . . 1 . . . . . . . . . 1 Propulsion 3 | . . . . . . . 1 . . 1 . . . . 1 Utility 7 | . 1 . 2 . 1 1 1 . . 1 . . . . . Weapon 1 | . . . . . . 1 . . . . . . . . . Parts Attached 117 | 7 1 9 6 1 18 6 6 1 10 22 10 1 . 3 16 Power 21 | 1 . 1 1 . 5 . 1 . 1 5 2 1 . . 3 Engine 11 | 1 . 1 1 . 3 . 1 . . 1 2 . . . 1 Core 8 | . . . . . 2 . . . . 4 . . . . 2 Reactor 2 | . . . . . . . . . 1 . . 1 . . . Propulsion 29 | 2 . 1 . 1 3 1 1 . 1 6 4 . . 2 7 Treads . | . . . . . . . . . . . . . . . . Leg 29 | 2 . 1 . 1 3 1 1 . 1 6 4 . . 2 7 Wheel . | . . . . . . . . . . . . . . . . Hover . | . . . . . . . . . . . . . . . . Flight . | . . . . . . . . . . . . . . . . Utility 34 | 2 1 4 5 . 4 2 1 1 6 5 1 . . 1 1 Device 15 | . 1 4 1 . . 2 . 1 3 1 1 . . 1 . Storage 8 | 1 . . 3 . 1 . 1 . . 2 . . . . . Processor 7 | 1 . . 1 . 1 . . . 3 1 . . . . . Hackware 1 | . . . . . 1 . . . . . . . . . . Protection 3 | . . . . . 1 . . . . 1 . . . . 1 Artifact . | . . . . . . . . . . . . . . . . Weapon 33 | 2 . 3 . . 6 3 3 . 2 6 3 . . . 5 Energy Gun 12 | 1 . 1 . . 3 3 1 . . 2 . . . . 1 Energy Cannon 3 | . . . . . 1 . . . . 1 . . . . 1 Ballistic Gun 3 | 1 . . . . . . . . . . 2 . . . . Ballistic Cannon 4 | . . . . . . . . . . 1 1 . . . 2 Launcher 10 | . . 2 . . 2 . 1 . 2 2 . . . . 1 Special Weapon . | . . . . . . . . . . . . . . . . Impact Weapon . | . . . . . . . . . . . . . . . . Slashing Weapon . | . . . . . . . . . . . . . . . . Piercing Weapon . | . . . . . . . . . . . . . . . . Special Melee Weapon 1 | . . . . . . . 1 . . . . . . . . Unidentified Prototypes 8 | . . 1 . . 1 . 1 . . 1 1 . . . 3 Corrupted Parts 2 | . . . . . . . . . . 2 . . . . . System Corruption 7 | . . . . . . . . . . 7 . . . . . Parts Lost 69 | . . 7 . 1 14 3 3 . 6 19 6 . . 1 9 Power 15 | . . 1 . . 4 . 1 . 1 4 2 . . . 2 Propulsion 16 | . . 1 . 1 2 . . . 1 4 3 . . . 4 Utility 15 | . . 3 . . 3 . . . 3 4 . . . 1 1 Weapon 23 | . . 2 . . 5 3 2 . 1 7 1 . . . 2 Highest Loss Streak 10 | . . 4 . 1 2 2 2 . 2 10 2 . . 1 5 To Critical Strikes . | . . . . . . . . . . . . . . . . Average Backups 14 | 3 3 7 11 12 13 12 13 13 18 14 13 19 19 19 18 Power 3 | . 1 . . 2 1 3 3 3 5 3 3 5 5 5 6 Propulsion 2 | . 1 1 1 . 1 4 4 5 4 . 1 3 4 3 3 Utility 2 | . . . . . 2 . 1 1 2 2 4 5 5 4 4 Weapon 5 | 1 1 4 8 8 7 4 4 3 5 6 2 4 5 5 4 Tool/Special . | . . . . . . . . . . . . . . . . Unused Backups 69 | . . 2 4 . 17 3 . . 16 3 . . . 4 20 Power 13 | . . . . . 2 . . . 3 . . . . 1 7 Propulsion 16 | . . 2 . . 2 3 . . 4 . . . . . 5 Utility 20 | . . . . . 4 . . . 5 2 . . . 3 6 Weapon 19 | . . . 4 . 8 . . . 4 1 . . . . 2 Tool/Special 1 | . . . . . 1 . . . . . . . . . . Average Slot Usage (%) 95 | . 100 98 82 98 90 98 92 93 98 91 97 100 100 97 98 Engine 6 | . 12 12 10 10 10 7 6 6 5 . 3 5 5 5 4 Core 3 | . . . . . 4 7 6 6 5 6 6 1 . . 5 Reactor 1 | . . . . . . . . . . 3 . 3 5 5 5 Leg 19 | . 25 25 20 18 14 14 18 18 17 18 19 22 22 21 24 Device 12 | . 12 19 10 20 4 13 12 12 13 6 16 16 16 14 13 Storage 13 | . 12 12 17 20 16 14 12 12 12 10 11 11 11 11 10 Processor 15 | . 12 3 4 10 15 14 12 12 15 21 22 22 22 22 20 Hackware 2 | . . . . . 5 7 6 6 6 3 . . . . . Energy Gun 7 | . 12 11 10 10 6 9 10 12 11 4 . . . . 2 Ballistic Gun 2 | . 12 6 . . . . . . . . 8 11 11 11 5 Launcher 5 | . . 5 10 10 5 11 3 6 6 5 . . . . 1 Peak Build Rating 110 | 7 8 21 17 19 29 41 46 50 64 72 71 77 77 79 110 Average Rating 46 | 4 8 16 14 17 23 38 43 45 54 64 66 75 75 75 99 On Entrance 39 | . 7 8 13 17 19 26 39 45 49 55 55 71 77 75 79 Avg Prop Armor Cover (%) 5 | . . . . . . . 5 5 . 6 . . . . . Naked Turns . | . . . . . . . . . . . . . . . . Heaviest Build 117 | 18 19 37 36 36 44 52 71 72 83 94 77 88 88 85 117 Greatest Support 113 | 20 20 23 23 26 32 34 51 51 54 71 69 69 69 70 113 Greatest Overweight (x) 4 | 3 . 1 1 2 2 1 2 2 2 4 1 1 1 3 2 Average Overweight (x) . | . . . . 1 1 1 1 1 1 1 . 1 1 1 . Largest Inventory Capacity 20 | 10 10 10 15 15 15 15 20 20 20 20 20 20 20 20 20 Average Capacity 17 | 8 10 10 14 15 15 15 19 20 20 20 20 20 20 20 20 Most Carried 20 | 8 5 10 15 15 15 15 15 18 20 19 18 20 20 20 20 Average Carried 14 | 3 4 7 11 12 13 12 13 13 18 14 13 19 19 19 18 Final Capacity 20 | 10 10 10 15 15 15 15 20 20 20 20 20 20 20 20 20 Final Carried 20 | 3 5 8 10 15 12 13 13 17 16 11 18 20 19 20 16 Class Distribution -------------------- 34% | Hacker-Mutant 24% | Hacker-Bomber 13% | Scavenger-Gunner 12% | Scavenger-Mutant 8% | Hacker-Gunner 6% | Scientist-Mutant Dominant Class ---------------- Hacker-Mutant | -10/Materials Hacker-Mutant | -10/Mines Hacker-Mutant | -9/Materials Scientist-Mutant | -9/Mines Hacker-Mutant | -8/Materials Hacker-Bomber | -7/Factory Hacker-Mutant | -6/Factory Hacker-Bomber | -6/Waste Hacker-Bomber | -6/Factory Hacker-Gunner | -5/Factory Scavenger-Gunner | -5/Extension Scavenger-Gunner | -5/Cetus Scavenger-Mutant | -5/Archives Scavenger-Mutant | -5/Hub_04(d) Scavenger-Mutant | -4/Factory Resources | -11 -10 -10 -9 -9 -8 -7 -6 -6 -6 -5 -5 -5 -5 -5 -4 ----------- Run | Yrd Mat Min Mat Min Mat Fac Fac Was Fac Fac Ext Cet Arc Hub Fac Matter Collected 5017 | 230 . 286 209 251 776 151 178 135 451 811 437 108 48 289 657 Remotely . | . . . . . . . . . . . . . . . . Salvage Created 6970 | . . 276 279 22 1508 205 167 . 1045 1453 524 . . 336 1155 Parts 380 | . . 8 35 4 83 12 8 . 58 75 25 . . 19 53 Haulers Intercepted 3 | . . . . . . . . . . 1 . . . . 2 Recyclers Shooed 11 | . . . 3 1 1 . . . 2 3 . . . . 1 Parts Field Recycled . | . . . . . . . . . . . . . . . . Retrieved Matter . | . . . . . . . . . . . . . . . . Parts Self-Destructed . | . . . . . . . . . . . . . . . . Prevented . | . . . . . . . . . . . . . . . . Parts Restored . | . . . . . . . . . . . . . . . . Kills | -11 -10 -10 -9 -9 -8 -7 -6 -6 -6 -5 -5 -5 -5 -5 -4 ------- Run | Yrd Mat Min Mat Min Mat Fac Fac Was Fac Fac Ext Cet Arc Hub Fac Combat Hostiles Destroyed 147 | . . 17 13 3 35 6 2 . 18 27 8 . . 4 14 Guns 52 | . . 10 2 . 7 3 2 . 6 8 3 . . 4 7 Cannons 16 | . . . . . 7 . . . . 3 3 . . . 3 AOE 73 | . . 7 11 3 18 3 . . 11 16 . . . . 4 Classes Destroyed 17 | . . 3 6 . 3 1 . . 3 1 . . . . . Worker 21 | . . . 3 . 5 1 . . 2 4 . . . 3 3 Builder 23 | . . . 2 . 2 1 . . 2 7 1 . . 1 7 Tunneler 1 | . . . . . . . . . 1 . . . . . . Hauler 3 | . . . . . . . . . . 1 . . . . 2 Recycler 2 | . . . . . 1 . . . . . . . . . 1 Operator 2 | . . . 1 . 1 . . . . . . . . . . Drone 4 | . . 4 . . . . . . . . . . . . . Watcher 18 | . . . 3 . 5 3 1 . 5 1 . . . . . Swarmer 26 | . . . 6 3 5 3 . . 3 4 1 . . 1 . Grunt 51 | . . 3 4 . 20 2 1 . 4 12 2 . . . 3 Brawler 2 | . . . . . 1 . 1 . . . . . . . . Duelist 1 | . . . . . 1 . . . . . . . . . . Sentry 24 | . . . 3 . 9 . . . 4 2 3 . . 2 1 Hunter 11 | . . . . . . 1 . . 3 1 . . . . 6 Programmer 17 | . . . . . . . . . 3 8 1 . . 1 4 Behemoth 1 | . . . . . . . . . 1 . . . . . . Enhanced Grunt 1 | . . . . . . . . . . . . . . . 1 Assembled 14 | . . 14 . . . . . . . . . . . . . Wasp 2 | . . . . . . . . . 2 . . . . . . Thug 1 | . . . . . . . . . 1 . . . . . . Savage 1 | . . . . . . . . . 1 . . . . . . Butcher 1 | . . . . . . . . . . . 1 . . . . Guerrilla 1 | . . . . . . . . . . . 1 . . . . Best Kill Streak 12 | . . 12 12 3 5 4 1 . 6 11 3 . . 3 12 Combat Bots Only 12 | . . 12 7 3 4 3 1 . 4 9 3 . . 1 4 Max Kills in Single Turn 4 | . . 2 2 3 2 2 1 . 4 4 2 . . 1 4 Gunslinging 1 | . . 1 . . . . . . . . . . . . . Exploded 3 | . . 2 2 3 1 1 . . 2 2 . . . . 2 Melee . | . . . . . . . . . . . . . . . . Uniques/NPCs Destroyed . | . . . . . . . . . . . . . . . . Combat | -11 -10 -10 -9 -9 -8 -7 -6 -6 -6 -5 -5 -5 -5 -5 -4 -------- Run | Yrd Mat Min Mat Min Mat Fac Fac Was Fac Fac Ext Cet Arc Hub Fac Hostile Shots Fired 865 | . . 62 31 7 130 22 12 . 153 178 69 2 5 9 185 Missed 310 | . . 27 11 2 54 9 5 . 62 51 23 1 3 1 61 Hits 555 | . . 35 20 5 76 13 7 . 91 127 46 1 2 8 124 Melee 8 | . . 4 . . . . . . . 3 1 . . . . Projectile 547 | . . 31 20 5 76 13 7 . 91 124 45 1 2 8 124 AOE 4 | . . 3 . . . . . . 1 . . . . . . Critical Strikes 25 | . . . . . 3 . . . 1 10 2 . . 1 8 Part Disruptions 5 | . . . . . . . 1 . . 3 . . . . 1 Damage Taken 9188 | . . 695 286 47 1011 240 167 . 1141 2005 746 25 35 144 2646 Core 2369 | . . 106 64 . 219 39 33 . 180 208 284 . . 27 1209 Absorbed by Shields 229 | . . . . . . . . . 62 . 160 7 . . . Ignored by Resistances 4568 | . . 256 176 30 617 141 100 . 588 1176 433 19 20 88 924 Regen/Repaired (Parts) 126 | . . . . . 62 . . 46 18 . . . . . . Core Remaining (%) 73 | 100 . 57 . 84 60 94 . . 74 . . . . 48 . Volleys Fired 374 | . . 43 22 2 108 14 11 . 38 50 24 3 . 16 43 Largest 3 | . . 2 2 1 2 3 3 . 3 3 3 3 . 2 3 Hottest 370 | . . 98 98 33 105 161 184 . 188 196 153 103 . 63 370 Shots Fired 753 | . . 81 39 2 147 32 19 . 101 113 71 10 . 33 105 Gun 396 | . . 73 17 . 38 16 16 . 59 53 31 7 . 33 53 Cannon 151 | . . . . . 51 . . . . 15 40 3 . . 42 Launcher 206 | . . 8 22 2 58 16 3 . 42 45 . . . . 10 Special . | . . . . . . . . . . . . . . . . Kinetic 212 | . . 40 . . . . . . . 10 55 10 . 33 64 Thermal 226 | . . 16 17 . 11 16 6 . 59 58 16 . . . 27 Explosive 163 | . . 8 22 2 58 16 3 . 27 17 . . . . 10 Electromagnetic 152 | . . 17 . . 78 . 10 . 15 28 . . . . 4 Robot Hit Streak 22 | . . 14 20 1 21 9 10 . 18 22 14 11 . 7 17 Robot Miss Streak 7 | . . 3 1 1 2 2 3 . 5 7 3 . . 2 3 Penetration Max 2 | . . . . . . . . . . . 2 1 . 1 2 Secondary Targets 4 | . . 2 . . . . . . . . . . . . 2 Max Gunslinging Chain 1 | . . 1 . . . . . . . . . . . . 1 Shots Hit Robots 574 | . . 57 34 1 123 21 15 . 76 72 53 10 . 36 76 Core Hits 464 | . . 39 31 3 87 16 15 . 86 93 24 3 . 15 52 Critical Kills 14 | . . . . . . . . . 2 1 3 . . 3 5 Critical Parts Destroyed 15 | . . . . . . . . . 2 . 2 1 . 3 7 Critical Strikes 47 | . . 1 2 . 1 2 1 . 4 6 9 1 . 6 14 Burn 9 | . . . 2 . . 2 . . . 5 . . . . . Meltdown 2 | . . . . . . . . . . . 2 . . . . Destroy 27 | . . . . . . . . . 4 1 3 1 . 6 12 Blast 6 | . . . . . . . . . . . 4 . . . 2 Corrupt 3 | . . 1 . . 1 . 1 . . . . . . . . Melee Attacks 12 | . . . . . . . 1 . . . . . . 11 . Impact . | . . . . . . . . . . . . . . . . Slashing . | . . . . . . . . . . . . . . . . Piercing . | . . . . . . . . . . . . . . . . Sneak Attacks 12 | . . . . . . . 1 . . . . . . 11 . Combat Hostiles . | . . . . . . . . . . . . . . . . Follow-up Attacks . | . . . . . . . . . . . . . . . . Damage Inflicted 22692 | . . 1169 1493 217 4352 1074 302 . 3729 4623 1282 237 . 465 3749 Guns 6226 | . . 540 238 . 542 243 256 . 1055 836 467 156 . 465 1428 Cannons 3026 | . . . . . 942 . . . . 441 806 81 . . 756 Explosions 13336 | . . 615 1255 166 2863 831 46 . 2650 3346 . . . . 1564 Melee . | . . . . . . . . . . . . . . . . Ramming 104 | . . 14 . 51 5 . . . 24 . 9 . . . 1 Kinetic 3164 | . . 218 . . . . . . . 310 935 237 . 465 999 Thermal 6024 | . . 210 238 . 567 243 102 . 1214 1717 338 . . . 1395 Explosive 9811 | . . 545 1255 166 2479 831 46 . 1980 1184 . . . . 1325 Electromagnetic 3589 | . . 182 . . 1301 . 154 . 511 1412 . . . . 29 Impact . | . . . . . . . . . . . . . . . . Slashing . | . . . . . . . . . . . . . . . . Piercing . | . . . . . . . . . . . . . . . . Highest Corruption 24 | . . 11 . . . . . . 4 23 23 23 23 24 4 Average Corruption 13 | . . 10 . . . . . . 4 12 23 23 23 23 3 Corruption Purged . | . . . . . . . . . . . . . . . . Corruption Blocked . | . . . . . . . . . . . . . . . . Effects 250 | . . 33 . . . . . . 42 25 71 16 7 48 8 Message Errors 60 | . . 8 . . . . . . 7 10 17 3 3 11 1 Matter Fused 61 | . . 11 . . . . . . 6 4 18 7 1 12 2 Heat Flow Errors 28 | . . 4 . . . . . . 8 3 6 1 . 6 . Energy Discharges 27 | . . 2 . . . . . . 8 1 6 1 1 6 2 Parts Rejected 2 | . . . . . . . . . . . 1 . . . 1 Parts Fused 2 | . . . . . . . . . . . 1 . 1 . . Data Loss (minor) 30 | . . 4 . . . . . . 4 1 8 2 1 8 2 Data Loss (major) 11 | . . 1 . . . . . . 3 1 3 1 . 2 . Misfires 11 | . . 2 . . . . . . 3 . 4 1 . 1 . Alerts 10 | . . 1 . . . . . . 1 1 5 . . 2 . Weapon Failures 8 | . . . . . . . . . 2 4 2 . . . . Overload Shots 26 | . . . . . . . . . . . . . . . 26 Effects 1 | . . . . . . . . . . . . . . . 1 Heat Surge 1 | . . . . . . . . . . . . . . . 1 Overflow Damage 693 | . . 16 56 18 94 28 1 . 78 346 3 . . . 53 Projectiles 54 | . . . . . 42 . . . . 9 3 . . . . Explosions 639 | . . 16 56 18 52 28 1 . 78 337 . . . . 53 Melee . | . . . . . . . . . . . . . . . . Knockbacks 16 | . . 1 . . . . . . 1 8 1 . . . 5 Impact 2 | . . 1 . . . . . . 1 . . . . . . Kinetic 13 | . . . . . . . . . . 8 1 . . . 4 Secondary 1 | . . . . . . . . . . . . . . . 1 Self-Inflicted Damage 1171 | . . 14 118 22 279 118 64 . 67 384 . . . . 105 Shots 57 | . . 1 6 1 12 5 4 . 2 23 . . . . 3 Rammed . | . . . . . . . . . . . . . . . . Targets Rammed 16 | . . 3 . 8 1 . . . 2 . 1 . . . 1 Kicked 16 | . . 3 . 8 1 . . . 2 . 1 . . . 1 Crushed . | . . . . . . . . . . . . . . . . Highest Temperature 1245 | . . 252 216 . 264 30 30 . 83 483 555 55 . 5 1245 Average Temperature 184 | . . 66 64 . 57 16 20 . 43 182 182 31 . 5 479 Received Heat Transfer 1791 | . . 89 45 . 504 9 24 . 270 378 244 . . 27 201 Effects 56 | . . . . . 2 . . . . 4 4 . . . 46 Shutdowns 4 | . . . . . . . . . . . . . . . 4 Energy Bleed 6 | . . . . . . . . . . 2 2 . . . 2 Interference 15 | . . . . . 2 . . . . . . . . . 13 Matter Decay 7 | . . . . . . . . . . . . . . . 7 Short Circuit 3 | . . . . . . . . . . 1 . . . . 2 Damage (minor) 8 | . . . . . . . . . . 1 1 . . . 6 Damage (major) 6 | . . . . . . . . . . . . . . . 6 Damage (core) 7 | . . . . . . . . . . . 1 . . . 6 Siege Activations . | . . . . . . . . . . . . . . . . Martial Activations . | . . . . . . . . . . . . . . . . Shielding Activations . | . . . . . . . . . . . . . . . . Robots Disrupted 1 | . . . . . . . . . . 1 . . . . . Combat Hostiles 1 | . . . . . . . . . . 1 . . . . . Robots Corrupted 4 | . . . . . 4 . . . . . . . . . . Combat Hostiles 3 | . . . . . 3 . . . . . . . . . . Parts Fried 13 | . . . . . 7 . . . 3 2 . . . . 1 Impact Corruptions . | . . . . . . . . . . . . . . . . Robots Melted 3 | . . . . . . . . . 1 . 2 . . . . Combat Hostiles 3 | . . . . . . . . . 1 . 2 . . . . Parts Melted 21 | . . . . . . . 1 . 4 11 5 . . . . Heat Transferred 7914 | . . 433 703 . 720 666 137 . 1578 2283 407 . . . 987 Parts Sabotaged . | . . . . . . . . . . . . . . . . Parts Stolen . | . . . . . . . . . . . . . . . . Parts Stripped . | . . . . . . . . . . . . . . . . Power Chain Reactions 15 | . . 1 . . 6 . 1 . 1 3 . . . . 3 Alert | -11 -10 -10 -9 -9 -8 -7 -6 -6 -6 -5 -5 -5 -5 -5 -4 ------- Run | Yrd Mat Min Mat Min Mat Fac Fac Was Fac Fac Ext Cet Arc Hub Fac Maximum Alert Level 2 | . . . 1 . 1 . . . 2 2 . . . . 1 Low Security (%) 85 | 100 100 100 86 100 82 100 100 100 66 47 100 100 100 100 96 Level 1 13 | . . . 13 . 17 . . . 33 41 . . . . 3 Level 2 1 | . . . . . . . . . . 10 . . . . . Level 3 . | . . . . . . . . . . . . . . . . Level 4 . | . . . . . . . . . . . . . . . . Level 5 . | . . . . . . . . . . . . . . . . High Security . | . . . . . . . . . . . . . . . . Max Security . | . . . . . . . . . . . . . . . . Peak Influence 504 | . . 55 233 78 316 87 38 2 413 504 112 89 97 199 306 Initial 111 | . . . . 40 . 28 . 2 . 19 111 . . 4 52 Average 69 | . . 2 101 5 92 20 4 . 120 177 24 20 53 65 52 Influence Increases 8427 | . . 144 517 135 1495 303 91 . 2089 1219 462 117 112 947 796 Destroy 0b10 Robot/C 4040 | . . 60 260 100 780 120 40 . 900 540 280 80 80 480 320 Destroy 0b10 Robot/NC 435 | . . . 45 . 75 25 5 . 70 65 25 5 . 55 65 Destroy Leader 1066 | . . 20 76 20 230 36 12 . 312 104 34 . . 138 84 Allied During Kill 564 | . . . . 2 6 . . . 244 . 58 21 24 188 21 Successful Hack 108 | . . . . . 15 22 . . 25 . 15 7 . 14 10 Disable Machine 292 | . . . 20 . 44 12 16 . 96 76 4 . 4 12 8 Destroy Structure 1802 | . . 64 116 13 345 88 18 . 442 404 16 4 4 30 258 Lose Combat Pursuer 120 | . . . . . . . . . . 30 30 . . 30 30 Influence Decreases 8121 | . . 144 368 284 1409 386 83 11 2033 966 771 117 90 824 635 Entered New Map 525 | . . . . 109 . 58 3 9 . 37 198 . . 18 93 Time Decay 6385 | . . 135 368 170 1296 298 60 2 1732 589 523 117 90 572 433 Lost Part 556 | . . 9 . 5 113 30 20 . 50 190 50 . . 4 85 Lost Ally 205 | . . . . . . . . . 101 . . . . 80 24 Purge Threat 450 | . . . . . . . . . 150 150 . . . 150 . Squads Dispatched 43 | . . . 1 . 10 1 2 . 13 8 1 . . 4 3 Investigation 5 | . . . . . 1 1 . . 1 1 1 . . . . Extermination 11 | . . . . . . . . . 6 2 . . . 2 1 Reinforcement 18 | . . . 1 . 4 . 2 . 3 4 . . . 2 2 Assault 1 | . . . . . . . . . . 1 . . . . . Garrison 8 | . . . . . 5 . . . 3 . . . . . . Intercept . | . . . . . . . . . . . . . . . . Searches Triggered . | . . . . . . . . . . . . . . . . Construction Impeded 11 | . . . 1 . 3 . 1 . 2 3 . . . . 1 Haulers Reinforced 3 | . . . . . . . . . 1 1 . . . . 1 Active Scanning Responses . | . . . . . . . . . . . . . . . . Cargo Convoy Interrupts . | . . . . . . . . . . . . . . . . Stealth | -11 -10 -10 -9 -9 -8 -7 -6 -6 -6 -5 -5 -5 -5 -5 -4 --------- Run | Yrd Mat Min Mat Min Mat Fac Fac Was Fac Fac Ext Cet Arc Hub Fac Distress Signals 13 | . . . 2 . 6 . 1 . 1 . . 1 . 2 . Communications Jammed . | . . . . . . . . . . . . . . . . Distress Signals . | . . . . . . . . . . . . . . . . Times Spotted 240 | . . 25 18 4 46 9 4 . 42 31 16 4 4 17 20 Peak Tracking Total 11 | . . 11 5 3 3 3 3 . 3 5 4 5 1 4 5 Tactical Retreats 7 | . . . . . . . . . . 2 2 . . 2 1 Traps | -11 -10 -10 -9 -9 -8 -7 -6 -6 -6 -5 -5 -5 -5 -5 -4 ------- Run | Yrd Mat Min Mat Min Mat Fac Fac Was Fac Fac Ext Cet Arc Hub Fac Traps Triggered 13 | . . . 2 . . . 1 . . . 7 . . 2 1 Indirectly . | . . . . . . . . . . . . . . . . Trap Hack Attempts 2 | . . . . . . . . . . . . . . 2 . Triggered . | . . . . . . . . . . . . . . . . Disarmed 12 | . . . . . 6 . . . . . 6 . . . . Reprogrammed 1 | . . . . . . . . . . . . . . 1 . Reused . | . . . . . . . . . . . . . . . . Traps Extracted . | . . . . . . . . . . . . . . . . Installed . | . . . . . . . . . . . . . . . . Triggered . | . . . . . . . . . . . . . . . . Machines | -11 -10 -10 -9 -9 -8 -7 -6 -6 -6 -5 -5 -5 -5 -5 -4 ---------- Run | Yrd Mat Min Mat Min Mat Fac Fac Was Fac Fac Ext Cet Arc Hub Fac Machines Disabled 73 | . . . 5 . 11 3 4 . 24 19 1 . 1 3 2 Max in Single Turn 5 | . . . 1 . 2 1 2 . 3 5 1 . . . 1 Garrison Access 1 | . . . . . 1 . . . . . . . . . . Machines Repaired . | . . . . . . . . . . . . . . . . Machines Dismantled . | . . . . . . . . . . . . . . . . Machines Sabotaged . | . . . . . . . . . . . . . . . . Overloaded Fab Kills . | . . . . . . . . . . . . . . . . Hacking | -11 -10 -10 -9 -9 -8 -7 -6 -6 -6 -5 -5 -5 -5 -5 -4 --------- Run | Yrd Mat Min Mat Min Mat Fac Fac Was Fac Fac Ext Cet Arc Hub Fac Machines Accessed 44 | . 1 1 1 . 8 3 . . 6 4 13 1 1 4 1 Terminals 35 | . 1 . . . 5 2 . . 5 3 13 1 . 4 1 Fabricators 2 | . . . . . . 1 . . 1 . . . . . . Repair Stations 1 | . . . . . 1 . . . . . . . . . . Recycling Units . | . . . . . . . . . . . . . . . . Scanalyzers 3 | . . . 1 . 1 . . . . 1 . . . . . Garrison Access 1 | . . . . . 1 . . . . . . . . . . Total Hacks 108 | . 3 1 7 . 20 11 . . 16 8 27 2 5 6 2 Successful 76 | . 1 1 7 . 12 9 . . 14 5 16 1 5 4 1 Failed 32 | . 2 . . . 8 2 . . 2 3 11 1 . 2 1 Catastrophic 1 | . . . . . . . . . . . 1 . . . . Database Lockouts . | . . . . . . . . . . . . . . . . Manual 5 | . . . . . . . . . . . . 1 4 . . Terminals 82 | . 3 . . . 14 9 . . 13 6 27 2 . 6 2 Fabricators 5 | . . . . . . 2 . . 3 . . . . . . Repair Stations 2 | . . . . . 2 . . . . . . . . . . Recycling Units . | . . . . . . . . . . . . . . . . Scanalyzers 12 | . . . 7 . 3 . . . . 2 . . . . . Garrison Access 1 | . . . . . 1 . . . . . . . . . . Terminal Hacks 57 | . 1 1 . . 7 7 . . 11 3 16 1 5 4 1 Record 15 | . . . . . . 3 . . 1 1 4 . 5 1 . Part Schematic 3 | . . . . . . 2 . . 1 . . . . . . Robot Schematic 1 | . . . . . . 1 . . . . . . . . . Open Door 12 | . . 1 . . . . . . . 1 9 1 . . . Level Access Points 1 | . 1 . . . . . . . . . . . . . . Branch Access Points 2 | . . . . . . . . . 1 . . . . 1 . Emergency Access Points 5 | . . . . . 2 . . . 3 . . . . . . Terminal Index 1 | . . . . . 1 . . . . . . . . . . Scanalyzer Index 1 | . . . . . . . . . . . 1 . . . . Unreport Threat 3 | . . . . . . . . . 1 1 . . . 1 . Locate Traps 7 | . . . . . 2 1 . . 2 . 1 . . 1 . Disarm Traps 2 | . . . . . 1 . . . . . 1 . . . . Investigation Status 1 | . . . . . . . . . 1 . . . . . . Assault Status 1 | . . . . . 1 . . . . . . . . . . Recall Reinforcements 1 | . . . . . . . . . 1 . . . . . . Zone Layout 1 | . . . . . . . . . . . . . . . 1 Fabricator Hacks 5 | . . . . . . 2 . . 3 . . . . . . Load Schematic 3 | . . . . . . 1 . . 2 . . . . . . Build 2 | . . . . . . 1 . . 1 . . . . . . Repair Station Hacks 2 | . . . . . 2 . . . . . . . . . . Scan Component 1 | . . . . . 1 . . . . . . . . . . Repair 1 | . . . . . 1 . . . . . . . . . . Recycling Unit Hacks . | . . . . . . . . . . . . . . . . Scanalyzer 11 | . . . 7 . 2 . . . . 2 . . . . . Retrieve Study 11 | . . . 7 . 2 . . . . 2 . . . . . Garrison Access Hacks 1 | . . . . . 1 . . . . . . . . . . Seal Access 1 | . . . . . 1 . . . . . . . . . . Unauthorized Hacks . | . . . . . . . . . . . . . . . . Terminals . | . . . . . . . . . . . . . . . . Fabricators . | . . . . . . . . . . . . . . . . Repair Stations . | . . . . . . . . . . . . . . . . Recycling Units . | . . . . . . . . . . . . . . . . Scanalyzers . | . . . . . . . . . . . . . . . . Garrison Access . | . . . . . . . . . . . . . . . . Data Cores Recovered 1 | . . . . . 1 . . . . . . . . . . Used . | . . . . . . . . . . . . . . . . Hacking Detections 29 | . 1 . 1 . 6 2 . . 5 4 7 . . 2 1 Full Trace Events 9 | . 1 . . . 4 1 . . 1 1 1 . . . . Feedback Events . | . . . . . . . . . . . . . . . . Feedback Blocked . | . . . . . . . . . . . . . . . . Robot Schematics Acquired 1 | . . . . . . 1 . . . . . . . . . Robots Built . | . . . . . . . . . . . . . . . . Authchips . | . . . . . . . . . . . . . . . . Time 162 | . . . . . . 81 . . 81 . . . . . . Total Robot Build Rating . | . . . . . . . . . . . . . . . . Part Schematics Acquired 3 | . . . . . . 2 . . 1 . . . . . . Parts Built . | . . . . . . . . . . . . . . . . Authchips . | . . . . . . . . . . . . . . . . Time . | . . . . . . . . . . . . . . . . Total Part Build Rating . | . . . . . . . . . . . . . . . . Part Studies Acquired 11 | . . . 7 . 2 . . . . 2 . . . . . Parts Repaired 1 | . . . . . 1 . . . . . . . . . . Time 32 | . . . . . 32 . . . . . . . . . . Parts Recycled . | . . . . . . . . . . . . . . . . Recycled Matter . | . . . . . . . . . . . . . . . . Retrieved Matter . | . . . . . . . . . . . . . . . . Retrieved Components . | . . . . . . . . . . . . . . . . Parts Scanalyzed . | . . . . . . . . . . . . . . . . Part Schematics Acquired . | . . . . . . . . . . . . . . . . Parts Damaged . | . . . . . . . . . . . . . . . . Bothacking | -11 -10 -10 -9 -9 -8 -7 -6 -6 -6 -5 -5 -5 -5 -5 -4 ------------ Run | Yrd Mat Min Mat Min Mat Fac Fac Was Fac Fac Ext Cet Arc Hub Fac Used RIF Installer . | . . . . . . . . . . . . . . . . Robots Hacked 5 | . . . . . . . . . . . . . . 5 . Non-combat 5 | . . . . . . . . . . . . . . 5 . Combat . | . . . . . . . . . . . . . . . . Robot Hacks Applied 5 | . . . . . . . . . . . . . . 5 . parse_system 1 | . . . . . . . . . . . . . . 1 . no_distress 4 | . . . . . . . . . . . . . . 4 . Relay Couplers Released 4 | . . . . . . . . . 4 . . . . . . Programmers 4 | . . . . . . . . . 4 . . . . . . Fabnet Peak Effective % . | . . . . . . . . . . . . . . . . Robots Rewired . | . . . . . . . . . . . . . . . . Allies Hacked 2 | . . . . . . . . . 1 . . . . 1 . Hacks Repelled . | . . . . . . . . . . . . . . . . Allies | -11 -10 -10 -9 -9 -8 -7 -6 -6 -6 -5 -5 -5 -5 -5 -4 -------- Run | Yrd Mat Min Mat Min Mat Fac Fac Was Fac Fac Ext Cet Arc Hub Fac Total Allies 42 | . . . . 3 . . . 20 . . 14 5 . . . Largest Group 20 | . . . . 3 3 . . 20 20 . 11 13 12 11 4 Highest-Rated Group 850 | . . . . 40 40 . . 784 784 . 465 850 819 660 317 Highest-Rated Ally 159 | . . . . 16 16 . . 50 50 . 159 159 159 96 96 Total Orders . | . . . . . . . . . . . . . . . . Ally Attacks 420 | . . . . 6 36 . . . 171 . 51 28 20 96 12 Total Damage 12646 | . . . . 23 419 . . . 6719 . 1278 494 367 2919 427 Kills 94 | . . . . 2 5 . . . 35 . 11 5 5 29 2 Allies Corrupted 5 | . . 3 . . . . . . 1 . . . . . 1 Allies Melted . | . . . . . . . . . . . . . . . . Intel | -11 -10 -10 -9 -9 -8 -7 -6 -6 -6 -5 -5 -5 -5 -5 -4 ------- Run | Yrd Mat Min Mat Min Mat Fac Fac Was Fac Fac Ext Cet Arc Hub Fac Active Infowar (turns) 3859 | . 110 1366 663 1226 494 . . . . . . . . . . Sensors 772 | . 110 662 . . . . . . . . . . . . . Terrain 3145 | . . 762 663 1226 494 . . . . . . . . . . Robot Analysis Total . | . . . . . . . . . . . . . . . . Derelict Logs Recovered 3 | . . 2 . 1 . . . . . . . . . . . Drone Launches 20 | . . 20 . . . . . . . . . . . . . Drone Recoveries 11 | . . 11 . . . . . . . . . . . . . Exploration | -11 -10 -10 -9 -9 -8 -7 -6 -6 -6 -5 -5 -5 -5 -5 -4 ------------- Run | Yrd Mat Min Mat Min Mat Fac Fac Was Fac Fac Ext Cet Arc Hub Fac Turns Passed 15022 | 72 110 1522 663 1226 2075 624 357 272 3034 1340 1497 327 122 1036 745 Spaces Moved 7148 | 54 89 830 313 636 855 288 168 118 1438 575 694 151 56 487 396 Core 26 | 26 . . . . . . . . . . . . . . . Treads . | . . . . . . . . . . . . . . . . Legs 7122 | 28 89 830 313 636 855 288 168 118 1438 575 694 151 56 487 396 Wheels . | . . . . . . . . . . . . . . . . Hover . | . . . . . . . . . . . . . . . . Flight . | . . . . . . . . . . . . . . . . Fastest Speed 50 | 50 120 120 120 175 175 185 115 185 185 185 120 190 190 190 107 Average Speed 182 | 102 120 160 183 186 197 185 186 222 186 193 188 190 190 190 141 Slowest Speed 400 | 200 120 190 190 245 260 185 255 255 262 400 190 190 190 330 264 Overloaded Moves . | . . . . . . . . . . . . . . . . Propulsion Burnouts . | . . . . . . . . . . . . . . . . Robots Hopped . | . . . . . . . . . . . . . . . . Potential Cave-ins 8 | . . . . . 8 . . . . . . . . . . Cave-ins Triggered 2 | . . 1 . . . . . . 1 . . . . . . Exploration Rate (%) 46 | 3 16 97 39 98 68 10 5 73 37 15 85 65 72 59 8 Regions Visited 15 Branch Regions 6 Pre-discovered Areas 1 | . . 1 . . . . . . . . . . . . . Known Exits Taken 13 | 1 1 1 1 1 1 1 . . 1 1 1 1 1 1 . Unknown Exits Taken . | . . . . . . . . . . . . . . . . Scrap Searched 4 | . . 1 . 3 . . . . . . . . . . . Spaces Dug . | . . . . . . . . . . . . . . . . Terrain Destroyed 1554 | . . 75 128 15 435 98 20 . 283 279 7 . . 1 213 Melee . | . . . . . . . . . . . . . . . . Projectile 23 | . . . . . . . . . . 2 7 . . 1 13 AOE 1531 | . . 75 128 15 435 98 20 . 283 277 . . . . 200 Terrain Rammed . | . . . . . . . . . . . . . . . . Walls Destroyed . | . . . . . . . . . . . . . . . . Machines Disabled . | . . . . . . . . . . . . . . . . Actions | -11 -10 -10 -9 -9 -8 -7 -6 -6 -6 -5 -5 -5 -5 -5 -4 --------- Run | Yrd Mat Min Mat Min Mat Fac Fac Was Fac Fac Ext Cet Arc Hub Fac Total 8510 | 70 92 948 368 671 1107 353 197 128 1712 709 826 185 73 568 503 Wait 516 | . . 41 6 19 69 31 2 2 178 34 46 27 16 32 13 Move 7134 | 53 88 829 312 635 854 287 168 117 1437 574 693 150 55 486 396 Hop . | . . . . . . . . . . . . . . . . Pick Up 195 | 10 3 15 13 6 33 11 5 5 25 21 17 3 . 11 17 Fast Attach . | . . . . . . . . . . . . . . . . Attach 125 | 7 1 10 5 1 20 7 7 2 9 24 10 1 1 4 16 Detach 6 | . . 1 . . 1 . 2 . . 1 . . . . 1 Swap 4 | . . . 2 . . . . . 2 . . . . . . Drop 88 | . . 6 8 . 21 3 1 2 21 5 . 1 1 6 13 Fire 374 | . . 43 22 2 108 14 11 . 38 50 24 3 . 16 43 Melee 12 | . . . . . . . 1 . . . . . . 11 . Ram . | . . . . . . . . . . . . . . . . Kick 16 | . . 3 . 8 1 . . . 2 . 1 . . . 1 Crush . | . . . . . . . . . . . . . . . . Escape Stasis 38 | . . . . . . . . . . . 35 . . . 3 Rewire . | . . . . . . . . . . . . . . . . Trap 2 | . . . . . . . . . . . . . . 2 . Miscellaneous . | . . . . . . . . . . . . . . . . Route ------- -11/Scrapyard -10/Materials (discovered 4 exits: Mat x3 / *Min) -10/Mines (discovered 2 exits: *Mat x2) -9/Materials (discovered 2 exits: *Mat / *Min) -9/Mines (discovered 2 exits: *Mat x2) -8/Materials (discovered 2 exits: *Fac x2) -7/Factory -6/Factory -6/Waste -6/Factory (discovered 3 exits: *Fac / Low x2) -5/Factory -5/Extension (discovered 2 exits: *Fac / *Cet) -5/Cetus -5/Archives -5/Hub_04(d) (discovered 2 exits: *Fac x2) -4/Factory History --------- Turn | Location | Event 5 | -11/Scrapyard | Identified exit to Materials 5 | -11/Scrapyard | Discovered exit to Materials (range 16) 73 | -11/Scrapyard | Entered Materials 73 | -10/Materials | Evolved 1 slot: Utility x1 94 | -10/Materials | Identified exit to Materials 164 | -10/Materials | Identified exit to Mines 164 | -10/Materials | Discovered exit to Mines (range 15) 183 | -10/Materials | Entered Mines 268 | -10/Mines | Discovered exit to Materials (range 12) 303 | -10/Mines | Build established: Hacker-Mutant 462 | -10/Mines | Learned Materials stockpile data 483 | -10/Mines | A weapon hastily lodged in a ceiling crevice suddenly fell to the ground 581 | -10/Mines | Assembled infested the area 593 | -10/Mines | Discovered exit to Materials (range 14) 652 | -10/Mines | Crushed by falling debris 683 | -10/Mines | Lost 4 parts (1p1n1u1w) 688 | -10/Mines | Destroyed 12 combat bots 705 | -10/Mines | Found the Drone Emporium 712 | -10/Mines | Found Prototype Device 714 | -10/Mines | Identified Sensor Drone Bay 846 | -10/Mines | System corruption reached 10% 855 | -10/Mines | Lost 4 allies 997 | -10/Mines | Received a Rocket Launcher from a helpful Derelict 1354 | -10/Mines | Murdered 4 allies 1554 | -10/Mines | Found a hidden stash of uninstalled traps 1705 | -10/Mines | Entered Materials 1705 | -9/Materials | Evolved 2 slots: Utility x2 2046 | -9/Materials | Destroyed 7 combat bots 2082 | -9/Materials | Identified exit to Materials 2082 | -9/Materials | Discovered exit to Materials (range 11) 2338 | -9/Materials | Identified exit to Mines 2338 | -9/Materials | Discovered exit to Mines (range 8) 2368 | -9/Materials | Entered Mines 2633 | -9/Mines | Discovered exit to Materials (range 9) 2655 | -9/Mines | Learned 4 Materials zone layouts 2655 | -9/Mines | Assisted by bots powering up and referring to "LRC-V3" 2761 | -9/Mines | Discovered exit to Materials (range 7) 3005 | -9/Mines | Build established: Scientist-Mutant 3594 | -9/Mines | Entered Materials 3594 | -8/Materials | Accompanied by 3 allies 3594 | -8/Materials | Evolved 2 slots: Power x1, Utility x1 3595 | -8/Materials | Identified exit to Factory 3724 | -8/Materials | Repaired Rocket Launcher+ 3952 | -8/Materials | Build established: Hacker-Mutant 4537 | -8/Materials | Garrison activated, responded to threat 4806 | -8/Materials | Discovered exit to Factory (range 16) 5403 | -8/Materials | Garrison activated, responded to threat 5669 | -8/Materials | Entered Factory 5669 | -7/Factory | Evolved 2 slots: Utility x1, Weapon x1 5978 | -7/Factory | Build established: Hacker-Bomber 6265 | -7/Factory | Identified exit to Factory 6265 | -7/Factory | Discovered exit to Factory (range 15) 6293 | -7/Factory | Entered another Factory area 6293 | -6/Factory | Evolved 2 slots: Propulsion x1, Utility x1 6650 | -6/Factory | Sucked down chute 6650 | -6/Factory | Entered Waste 6651 | -6/Waste | Joined by Warlord forces that had cleared the area 6851 | -6/Waste | Identified exit to Factory 6851 | -6/Waste | Discovered exit to Factory (range 16) 6922 | -6/Waste | Entered Factory 6922 | -6/Factory | Accompanied by 20 allies 7273 | -6/Factory | Lost 6 allies 7277 | -6/Factory | P-60 Hacker assimilated allied GA-90Y(g) 8087 | -6/Factory | Crushed by falling debris 9051 | -6/Factory | P-60 Hacker assimilated allied JS-0MF(d) 9191 | -6/Factory | Lost 4 allies 9643 | -6/Factory | Identified exit to Lower Caves 9779 | -6/Factory | Spotted B-75 Beast 9803 | -6/Factory | Destroyed B-75 Beast 9909 | -6/Factory | Identified exit to Factory 9909 | -6/Factory | Discovered exit to Factory (range 13) 9921 | -6/Factory | Build established: Hacker-Gunner 9956 | -6/Factory | Entered another Factory area 9956 | -5/Factory | Evolved 2 slots: Propulsion x1, Utility x1 10010 | -5/Factory | Found Prototype Launcher 10611 | -5/Factory | Destroyed 9 combat bots 10709 | -5/Factory | Identified Tesla Bomb Launcher 10884 | -5/Factory | System corruption reached 10% 10915 | -5/Factory | Lost 6 parts (3p1u2w) 11072 | -5/Factory | Lost 10 parts (1p3n2u4w) 11156 | -5/Factory | First assault squad dispatched 11291 | -5/Factory | Identified exit to Extension 11291 | -5/Factory | Discovered exit to Extension (range 5) 11296 | -5/Factory | Entered Extension 11356 | -5/Extension | Rescued a captive Derelict 11399 | -5/Extension | P-70 Sage assimilated allied RL-JED(l) 11464 | -5/Extension | Rescued a captive Derelict 11467 | -5/Extension | Rescued a captive Derelict 11517 | -5/Extension | Rescued A7 11619 | -5/Extension | Rescued a captive Derelict 11620 | -5/Extension | Rescued a captive Derelict 11652 | -5/Extension | Rescued a captive Derelict 11653 | -5/Extension | Rescued a captive Derelict 11672 | -5/Extension | Rescued a captive Derelict 11673 | -5/Extension | Rescued a captive Derelict 11698 | -5/Extension | Build established: Scavenger-Gunner 11817 | -5/Extension | Rescued a captive Derelict 11818 | -5/Extension | Rescued a captive Derelict 11867 | -5/Extension | Spotted B-75 Beast 11875 | -5/Extension | Spotted B-75 Beast 11897 | -5/Extension | Allies destroyed B-75 Beast 11906 | -5/Extension | Allies destroyed B-75 Beast 12098 | -5/Extension | Identified exit to Cetus 12098 | -5/Extension | Discovered exit to Cetus (range 15) 12100 | -5/Extension | Identified exit to Factory 12100 | -5/Extension | Discovered exit to Factory (range 15) 12317 | -5/Extension | Rescued a captive Derelict 12450 | -5/Extension | Rescued a captive Derelict 12793 | -5/Extension | Entered Cetus 12793 | -5/Cetus | Accompanied by 11 allies (A7) 12798 | -5/Cetus | Acquired a Cetus Manufacturing Module code from A7 12817 | -5/Cetus | Spotted Cetus Guard 12817 | -5/Cetus | Spotted Cetus Guard 12823 | -5/Cetus | Spotted Cetus Guard 12834 | -5/Cetus | Allies destroyed Cetus Guard 12841 | -5/Cetus | Allies destroyed Cetus Guard 12859 | -5/Cetus | Lost 3 allies 12934 | -5/Cetus | Started Cetus Manufacturing Module 12946 | -5/Cetus | Escorted A7 to Cetus Mainframe 12959 | -5/Cetus | Manufactured an Enhanced Grunt 12984 | -5/Cetus | Manufactured an Enhanced Grunt 13009 | -5/Cetus | Manufactured an Enhanced Grunt 13034 | -5/Cetus | Manufactured an Enhanced Grunt 13059 | -5/Cetus | Manufactured an Enhanced Grunt 13076 | -5/Cetus | Identified exit to Archives 13076 | -5/Cetus | Discovered exit to Archives (range 15) 13120 | -5/Cetus | Entered Archives 13120 | -5/Archives | Accompanied by 13 allies (A7) 13125 | -5/Archives | Received a hacking code to weaken MAIN.C 13156 | -5/Archives | Unable to access archive contents 13156 | -5/Archives | Unable to access archive contents 13157 | -5/Archives | Unable to access archive contents 13188 | -5/Archives | Unable to access archive contents 13191 | -5/Archives | Identified exit to Hub_04(d) 13191 | -5/Archives | Discovered exit to Hub_04(d) (range 16) 13242 | -5/Archives | Entered Hub_04(d) 13242 | -5/Hub_04(d) | Accompanied by 11 allies 13462 | -5/Hub_04(d) | Build established: Scavenger-Mutant 13527 | -5/Hub_04(d) | Discovered exit to Factory (range 14) 13641 | -5/Hub_04(d) | Core integrity fell below 50% 14251 | -5/Hub_04(d) | Discovered exit to Factory (range 8) 14278 | -5/Hub_04(d) | Entered Factory 14278 | -4/Factory | Accompanied by 4 allies 14278 | -4/Factory | Evolved 2 slots: Power x1, Propulsion x1 14703 | -4/Factory | Lost 3 allies 14754 | -4/Factory | Lost 5 parts (1p2n2w) 14904 | -4/Factory | Core integrity fell below 50% 15012 | -4/Factory | Core integrity fell below 20% 15024 | -4/Factory | Core melted Last Messages --------------- 15015_ Power failure, Neutrino Core shutdown. 15015_ Overheating: Matter decay (-15). 15016_ The unstable cave ceiling collapses. 15017_ Overheating: System interference. 15017_ Disruptor Cannon temporarily disabled. 15017_ U-05 Engineer lays Concrete. 15017_ U-05 Engineer destroyed. 15018_ Overheating: System interference. 15018_ Adv. Variable Charge Gun temporarily disabled. 15018_ The unstable cave ceiling collapses. 15020_ Destroyed Tesla Rifle. 15020_ P-70 Sage destroyed. 15022_ Power failure, Quantum Reactor shutdown. 15023_ The unstable cave ceiling collapses. 15024_ Power failure, Lgt. Neutrino Core shutdown. 15024_ Overheating: Core damaged (-126). [Achievement: 10k Club] Map ----- +----------------------------------------------------+ | ?????????????????????????????????????????????????? | | ?????????????????????????????????????????????????? | | ??????????????????????????????????????????????#### | | ??????? ?? # """ #??????# "" ??# | | ?????# ?? + #??????# """??# | | ?????# ? # """ #??????# """??# | | ?????# ? # """ #??????# """??# | | ?????# #?###### """ ######## ??# | | ?????# #??????# # #+##+######### | | ?????# #??????# """ # # # | | ?????# #??????# """ # # # | | ?????+ #?????## """ # * + # | | ?????# #??? # " # / | | "????# ^ #? ###### " # # | | ???# ^ #? #### " # # | | ##+### # # ## " # #### | | #"" " # | | #"" " # | | # T " # | | " " # | | *% " " # | | #########+## % # | | ?????# ###+### | | ??# # %! = | | ??# # ] ]* %% = %[ | | ??# # ] @ * !% % | | " # !% ![[ | | # ### !%=% % =%[ | | " # ###?###########+### #### ##### | | " #[ ##????????# *!% % ! #### # | | " # #?????????# *!! # # # """ | | # # #### #?????????# "" # """ # # """ | | # ###?????????# ] " "" # "R" # # """ | | # # # #???????????# """"" # " " # # """ | | ### # # ##???????????# # / # """ | | ?##########?????????????# """"" # ! ] # # """ | | ????????????????????????# """"" ####### # | | ????????????????????????# !! """" + # | | ????????????????????????# [ """" ##### ##### | | ????????????????????????# =! #???# #???? | | ????????????????????????# * = #???# #???? | | ????????????????????????######+#######???# #???? | | ???????????????????????????# # #?????????# #???? | | ???????????????????????????#=# #?????????# ^ #???? | | ???????????????????????????# " ##????????# #???? | | ???????????????????????????# # "#????????# #???? | | ???????????????????????????##" ##???????## ##??? | | ????????????????????????????## ##???????# #??? | | ????????????????????????##### ! ######### % #??? | | ????????????????????????# ! * #??? | +----------------------------------------------------+ Best States ------------- Heat Dissipation 91 Energy Generation 53 Energy Capacity 635 Matter Stores 450 Matter Capacity 450 Sight Range 16 Robot Scan Range 14 Terrain Scan Range 16 Terrain Scan Density 210 Additional Mass Support 9 Base Temperature (-) 150 Armor Coverage 225 Resistance: KI 35 Resistance: TH 35 Resistance: EX 35 Resistance: EM 60 Resistance: I 35 Resistance: S 35 Resistance: P 35 Evasion (%) 55 Targeting Accuracy 5 Target Analysis 5 Core Analysis 6 Recoil Reduction 4 Energy Filtering 30 Offensive Hacking 30 Item Schematics ----------------- Mic. Nuclear Core | -7/Factory | Hacked Adv. System Shield | -7/Factory | Hacked Magnetic Acceleration Cannon | -6/Factory | Hacked Robot Schematics ------------------ K-01 Serf | -7/Factory | Hacked Fabricated ------------ Nothing Repaired ---------- Rocket Launcher | 11% | -8/Materials Studied --------- Imp. Aluminum Leg | -9/Materials | Hacked Ion Engine | -9/Materials | Hacked Rocket Launcher | -9/Materials | Hacked Particle Gun | -9/Materials | Hacked Lgt. Assault Rifle | -9/Materials | Hacked Lgt. EM Pulse Cannon | -9/Materials | Hacked Med. Laser | -9/Materials | Hacked Aluminum Leg | -8/Materials | Hacked Titanium Leg | -8/Materials | Hacked Nuclear Core | -5/Factory | Hacked Imp. Titanium Leg | -5/Factory | Hacked Alien Tech Used ----------------- None Achievements -------------- 10k Club Bumper Bots Collateral Damage DIY Cooler Generalissimo Knowing Is Half The Battle Main Advantage My Business Is Booming Overkill Prison Break Project G-00 Respectable Loadout Significant Disruption The More The Merrier We Are Legion Challenges ------------ None Game ------ Seed ScanFusionAutobeam Manual? 0 Play Time 02:05:06 Cumulative 11.6 hours Start 2026.09.07 @ 23:58:20 End 2026.09.20 @ 00:10:12 Sessions 7 Manual Loads 0 Difficulty Explorer Special Mode None Game No. 29 Rogue 6 Adventurer 0 Explorer 23 Win Type - Total 0 Types 0/0/0/0/0/0/0/0/0/0 Lore% 10 Gallery% 17 Achievement% 16 Wizard Run 0 Options --------- Layout 1 ASCII 0 Keyboard 0 Movement Numpad Keybinds 0 Fullscreen 1 Font 24/Smallcaps Map View 50x35 Zoom Use 0% Tactical HUD 1 Map Filters NONE Filters NONE Steam 1 RUN: d6abf896-7e71-4c2b-858a-e123147d836f